bitfinex-derivatives/quotes_BNBF0:USTF0_20250211
["timestamp","ask_amount","ask_price","bid_price","bid_amount"]
[1739248919393,1.11806217,637.74,635.59,0.31466826]
[1739248919598,4.21565361,637.73,635.59,0.31466826]
[1739248919897,0.31362217,637.71,635.59,0.31466826]
[1739248920102,1.11806217,637.7,635.59,0.31466826]
[1739248920303,0.31363693,637.68,635.59,0.31466826]
[1739248920498,1.11806217,637.67,635.59,0.31466826]
[1739248920697,0.31365168,637.65,635.59,0.31466826]
[1739248920902,0.28863984,637.64,635.59,0.31466826]
[1739248921103,0.31366644,637.62,635.59,0.31466826]
[1739248921304,1.11820822,637.61,635.59,0.31466826]
[1739248921503,0.31372056,637.51,635.59,0.31466826]
[1739248921703,0.28863984,637.5,635.59,0.31466826]
[1739248921905,1.11820822,637.49,635.59,0.31466826]
[1739248922102,0.90764503,637.38,635.59,0.31466826]
[1739248922298,0.3137944,637.36,635.59,0.31466826]
[1739248922498,0.28863984,637.35,635.59,0.31466826]
[1739248922700,0.31380917,637.33,635.59,0.31466826]
[1739248923005,1.11820822,637.32,635.59,0.31466826]
[1739248923204,1.11908163,637.31,635.59,0.64466826]
[1739248923400,0.28863984,637.3,635.59,0.64466826]
[1739248923599,2.7839791,637.3,635.59,0.64466826]
[1739248923800,0.6024687,637.29,635.59,0.64466826]
[1739248924003,1.67323482,637.28,635.59,0.64466826]
[1739248924201,0.60247855,637.27,635.59,0.64466826]
[1739248924402,0.60248348,637.26,635.59,0.64466826]
[1739248924603,1.43337936,637.25,635.59,0.64466826]
[1739248924904,0.31385841,637.23,635.59,0.64466826]
[1739248925100,0.28863984,637.22,635.59,0.64466826]
[1739248925605,0.28863984,637.21,635.59,0.64466826]
[1739248925806,0.28861391,637.2,635.59,0.64466826]
[1739248926103,0.28861391,637.19,635.59,0.64466826]
[1739248926295,0.31388304,637.18,635.59,0.64466826]
[1739248926497,1.1199128,637.17,635.59,0.64466826]
[1739248926701,0.31388304,637.18,635.59,0.64466826]
[1739248926702,3.38876293,637.16,635.59,0.64466826]
[1739248926903,0.28861391,637.15,635.59,0.64466826]
[1739248927203,1.36165213,637.15,635.59,0.64466826]
[1739248927403,0.28861391,637.14,635.59,0.64466826]
[1739248927699,0.28861391,637.13,635.59,0.64466826]
[1739248927903,0.28861391,637.14,635.59,0.64466826]
[1739248928104,0.28861391,637.13,635.59,0.64466826]
[1739248928404,0.28861391,637.12,635.59,0.64466826]
[1739248928599,0.28861391,637.14,635.59,0.64466826]
[1739248928806,0.28861391,637.13,635.59,0.64466826]
[1739248928996,0.28861391,637.14,635.59,0.64466826]
[1739248929196,1.07303822,637.15,635.59,0.64466826]
[1739248929197,0.28861391,637.13,635.59,0.64466826]
[1739248929400,0.2887082,637.12,635.59,0.64466826]
[1739248929704,0.31391753,637.11,635.59,0.64466826]
[1739248929903,1.1209589,637.1,635.59,0.64466826]
[1739248930100,1.43488628,637.09,635.59,0.64466826]
[1739248930404,2.76710106,637.08,635.59,0.64466826]
[1739248930605,2.76710599,637.07,635.59,0.64466826]
[1739248930804,1.43490107,637.06,635.59,0.64466826]
[1739248931099,1.43496109,637.05,635.59,0.64466826]
[1739248931305,1.43496602,637.04,635.59,0.64466826]
[1739248931504,4.22122708,637.03,635.59,0.64466826]
[1739248931698,1.43497588,637.02,635.59,0.64466826]
[1739248931902,1.43673811,637.01,635.59,0.64466826]
[1739248932203,1.43799642,637.0,635.59,0.64466826]
[1739248932505,1.12402468,636.99,635.59,0.64466826]
[1739248932804,1.12402468,636.98,635.59,0.64466826]
[1739248932997,1.4380112,636.97,635.59,0.64466826]
[1739248933201,2.77491743,636.96,635.59,0.64466826]
[1739248933404,5.56117849,636.95,635.59,0.64466826]
[1739248933597,2.77492729,636.94,635.59,0.64466826]
[1739248933800,2.77493222,636.93,635.59,0.64466826]
[1739248934098,2.77493715,636.92,635.59,0.64466826]
[1739248934302,1.12402468,636.91,635.59,0.64466826]
[1739248934498,3.91028081,636.9,635.59,0.64466826]
[1739248934697,3.94042572,636.89,635.59,0.64466826]
[1739248934898,1.12709795,636.88,635.59,0.64466826]
[1739248935100,3.94043166,636.87,635.59,0.64466826]
[1739248935297,1.12710389,636.86,635.59,0.64466826]
[1739248935502,0.28876924,636.85,635.59,0.64466826]
[1739248936303,1.08204914,636.91,635.59,0.64466826]
[1739248936505,2.18863902,636.9,635.59,0.64466826]
[1739248936801,0.28872773,636.89,635.59,0.64466826]
[1739248937005,1.13048701,636.89,635.59,0.64466826]
[1739248937307,2.47736675,636.88,635.59,0.64466826]
[1739248937508,2.47736675,636.87,635.59,0.64466826]
[1739248937806,2.47736675,636.86,635.59,0.64466826]
[1739248938005,0.31401117,636.92,635.59,0.64466826]
[1739248938006,5.29069452,636.85,635.59,0.64466826]
[1739248938207,2.47738481,636.84,635.59,0.64466826]
[1739248938406,2.47738481,636.83,635.59,0.64466826]
[1739248938608,2.47738481,636.82,635.59,0.64466826]
[1739248938807,2.47738481,636.81,635.59,0.64466826]
[1739248939008,2.47738481,636.8,635.59,0.64466826]
[1739248939208,2.47738481,636.79,635.59,0.64466826]
[1739248939409,2.47738481,636.78,635.59,0.64466826]
[1739248939608,2.47738481,636.77,635.59,0.64466826]
[1739248939810,5.00196679,636.76,635.59,0.64466826]
[1739248940009,2.47747075,636.75,635.59,0.64466826]
[1739248940205,2.47747075,636.74,635.59,0.64466826]
[1739248940411,3.70893102,636.73,635.59,0.64466826]
[1739248940603,2.47747075,636.72,635.59,0.64466826]
[1739248940805,2.79451029,636.71,635.59,0.64466826]
[1739248941111,0.92246205,636.69,635.59,0.64466826]
[1739248941308,0.28883173,636.68,635.59,0.64466826]
[1739248941506,0.60306045,636.67,635.59,0.64466826]
[1739248941711,0.60306538,636.66,635.59,0.64466826]
[1739248941914,1.44597947,636.65,635.59,0.64466826]
[1739248942113,0.92246205,636.62,635.59,0.64466826]
[1739248942308,0.92246205,636.59,635.59,0.33]
[1739248942512,3.71713073,636.58,635.59,0.33]
[1739248942708,0.92246205,636.55,635.59,0.33]
[1739248943013,6.53047824,636.54,635.59,0.33]
[1739248943213,2.79469336,636.53,635.59,0.33]
[1739248943415,2.48055581,636.52,635.59,0.33]
[1739248943614,2.48055581,636.51,635.59,0.33]
[1739248943915,0.92246205,636.44,635.59,0.33]
[1739248944115,2.79480875,636.43,635.59,0.33]
[1739248944315,0.92246205,636.31,635.59,0.33]
[1739248944610,5.29388358,636.3,635.59,0.33]
[1739248944814,0.28899199,636.29,635.59,0.33]
[1739248945010,0.92132954,636.27,635.59,0.33]
[1739248945215,2.4777195,636.26,635.59,0.33]
[1739248945517,2.4777195,636.25,635.59,0.33]
[1739248945816,2.4777195,636.24,635.59,0.33]
[1739248946011,1.13088433,636.23,635.59,0.33]
[1739248946209,2.47639786,636.22,635.59,0.33]
[1739248946409,2.47639786,636.21,635.59,0.33]
[1739248946609,2.47639786,636.2,635.59,0.33]
[1739248946813,1.13083392,636.19,635.59,0.33]
[1739248947010,1.64329872,636.21,635.59,0.33]
[1739248947310,2.81332777,636.19,635.59,0.33]
[1739248947717,1.08204914,636.4,635.59,0.33]
[1739248948116,0.28885588,636.39,635.59,0.33]
[1739248948316,2.81332777,636.69,635.59,0.33]
[1739248948610,3.86881994,636.68,635.59,0.33]
[1739248948816,2.78677574,636.67,635.59,0.33]
[1739248949013,2.4726731,636.66,635.59,0.33]
[1739248949211,2.4726731,636.65,635.59,0.33]
[1739248949515,2.78682238,636.64,635.59,0.33]
[1739248949711,2.78682731,636.63,635.59,0.33]
[1739248949911,2.78683225,636.62,635.59,0.33]
[1739248950110,2.78683718,636.61,635.59,0.33]
[1739248950315,2.78684212,636.6,635.59,0.33]
[1739248950614,1.4430016,636.59,635.59,0.33]
[1739248950815,1.1283274,636.58,635.59,0.33]
[1739248951011,1.12833707,636.57,635.59,0.33]
[1739248951215,1.12833707,636.56,635.59,0.33]
[1739248951416,0.28892425,636.55,635.59,0.33]
[1739248951616,0.28892425,636.54,635.59,0.33]
[1739248951920,0.28892425,636.53,635.59,0.33]
[1739248952113,0.28892425,636.57,635.59,0.33]
[1739248952315,0.28892425,636.56,635.59,0.33]
[1739248952519,0.83928352,636.55,635.59,0.33]
[1739248952720,1.12820777,636.54,635.59,0.33]
[1739248952915,1.12820777,636.53,635.59,0.33]
[1739248953121,1.12831677,636.52,635.59,0.33]
[1739248953313,1.12831677,636.51,635.59,0.33]
[1739248953516,1.12831677,636.5,635.59,0.33]
[1739248953719,1.12831677,636.49,635.59,0.33]
[1739248954019,3.10225202,636.48,635.59,0.33]
[1739248954216,0.2888868,636.47,635.59,0.33]
[1739248954923,0.2888868,636.46,635.59,0.33]
[1739248955121,1.34344268,636.57,635.59,0.33]
[1739248955122,0.2888868,636.45,635.59,0.33]
[1739248955315,0.2888868,636.44,635.59,0.33]
[1739248955617,0.28890186,636.43,635.59,0.33]
[1739248955918,0.28890186,636.42,635.59,0.33]
[1739248956115,2.81332777,636.56,635.59,0.33]
[1739248956318,1.12812873,636.55,635.59,0.33]
[1739248956520,3.10219192,636.54,635.59,0.33]
[1739248956816,1.12827759,636.53,635.59,0.33]
[1739248957122,3.94160536,636.52,635.59,0.33]
[1739248957321,1.12826818,636.51,635.59,0.33]
[1739248957621,1.12831,636.5,635.59,0.33]
[1739248957823,3.94163777,636.49,635.59,0.33]
[1739248958017,1.12831,636.48,635.59,0.33]
[1739248958218,2.78590818,636.47,635.59,0.33]
[1739248958517,5.59924088,636.46,635.59,0.33]
[1739248958715,2.47167499,636.45,635.59,0.33]
[1739248958921,2.47167499,636.44,635.59,0.33]
[1739248959221,2.47167499,636.43,635.59,0.33]
[1739248959422,2.47167499,636.42,635.59,0.33]
[1739248959623,1.12831,636.41,635.59,0.33]
[1739248959822,1.12884703,636.4,635.59,0.33]
[1739248960022,1.12884703,636.39,635.59,0.33]
[1739248960223,1.12884703,636.38,635.59,0.33]
[1739248960421,0.28890597,636.37,635.59,0.33]
[1739248960726,0.28890597,636.36,635.59,0.33]
[1739248960925,0.28890597,636.38,635.59,0.33]
[1739248961225,0.84001902,636.37,635.59,0.33]
[1739248961421,1.12890782,636.36,635.59,0.33]
[1739248961619,1.12890782,636.35,635.59,0.33]
[1739248961825,1.12890782,636.34,635.59,0.33]
[1739248962025,1.12890782,636.33,635.59,0.33]
[1739248962226,2.81332777,636.32,635.59,0.33]
[1739248962819,0.28892119,636.31,635.59,0.33]
[1739248963226,0.28892119,636.45,635.59,0.33]
[1739248963421,1.12857895,636.44,635.59,0.33]
[1739248963729,2.47238578,636.43,635.59,0.33]
[1739248964025,2.47238578,636.42,635.59,0.33]
[1739248964227,2.78664859,636.41,635.59,0.33]
[1739248964526,2.78665353,636.4,635.59,0.33]
[1739248964723,0.91925914,636.33,635.59,0.33]
[1739248964921,4.33591692,636.32,635.59,0.33]
[1739248965125,0.91925914,636.28,635.59,0.33]
[1739248965419,2.78585657,636.27,635.59,0.33]
[1739248965624,2.78586151,636.26,635.59,0.33]
[1739248965924,2.78586645,636.25,635.59,0.33]
[1739248966125,2.78587139,636.24,635.59,0.33]
[1739248966323,2.78587633,636.23,635.59,0.33]
[1739248966529,2.78588127,636.22,635.59,0.33]
[1739248966727,2.78588622,636.21,635.59,0.33]
[1739248966924,2.47152461,636.2,635.59,0.33]
[1739248967129,2.7858961,636.19,635.59,0.33]
[1739248967322,2.47152461,636.18,635.59,0.33]
[1739248967521,2.47428713,636.17,635.59,0.33]
[1739248967722,2.47428713,636.16,635.59,0.33]
[1739248967929,2.47428713,636.15,635.59,0.33]
[1739248968122,2.47428713,636.14,635.59,0.33]
[1739248968326,2.47428713,636.13,635.59,0.33]
[1739248968529,2.47428713,636.12,635.59,0.33]
[1739248968827,2.47428713,636.11,635.59,0.33]
[1739248969026,1.12950905,636.1,635.59,0.33]
[1739248969229,0.28902275,636.09,635.59,0.33]
[1739248969728,2.81332777,636.1,635.59,0.33]
[1739248969929,1.08204914,636.18,635.59,0.33]
[1739248970136,0.28901066,636.17,635.59,0.33]
[1739248970926,1.08204914,636.18,635.59,0.33]
[1739248971528,1.08204914,636.52,635.59,0.33]
[1739248972029,1.08204914,636.52,635.6,0.31466331]
[1739248972827,2.81332777,636.8,635.6,0.31466331]
[1739248973030,2.1936148,636.79,635.6,0.31466331]
[1739248973526,0.60288188,636.78,635.6,0.64766331]
[1739248973731,0.60288681,636.77,635.6,0.64766331]
[1739248974031,0.28880167,636.76,635.6,0.64766331]
[1739248974432,2.48822043,636.76,635.6,0.64766331]
[1739248974628,2.48822043,636.75,635.6,0.64766331]
[1739248974827,2.48822043,636.74,635.6,0.64766331]
[1739248975032,2.48822043,636.73,635.6,0.64766331]
[1739248975231,2.48822145,636.72,635.6,0.64766331]
[1739248975430,5.30154922,636.71,635.6,0.64766331]
[1739248975627,2.48822145,636.7,635.6,0.64766331]
[1739248975824,2.48822145,636.69,635.6,0.64766331]
[1739248976029,2.48822145,636.68,635.6,0.64766331]
[1739248976231,2.48822145,636.67,635.6,0.64766331]
[1739248976428,2.48822145,636.66,635.6,0.64766331]
[1739248976628,2.48822145,636.65,635.6,0.64766331]
[1739248976831,2.48822145,636.64,635.6,0.64766331]
[1739248977033,1.13473298,636.63,635.6,0.64766331]
[1739248977234,2.81332777,636.65,635.6,0.64766331]
[1739248977434,1.93055495,636.64,635.6,0.64766331]
[1739248977635,0.84850581,636.63,635.6,0.64766331]
[1739248978029,1.08204914,636.62,635.6,0.64766331]
[1739248978229,2.20651335,636.61,635.6,0.64766331]
[1739248978635,0.31416902,636.6,635.6,0.333]
[1739248978831,0.28890435,636.59,635.6,0.333]
[1739248979030,0.31417889,636.58,635.6,0.333]
[1739248979332,0.28890435,636.57,635.6,0.333]
[1739248979530,0.92868019,636.55,635.6,0.333]
[1739248979729,0.92868019,636.52,635.6,0.333]
[1739248979931,0.92868019,636.5,635.6,0.333]
[1739248980128,0.92868019,636.43,635.6,0.333]
[1739248980330,2.81332777,636.54,635.6,0.333]
[1739248980331,3.73835577,636.42,635.6,0.333]
[1739248980629,0.92868019,636.4,635.6,0.333]
[1739248980833,0.92868019,636.37,635.6,0.333]
[1739248981030,0.60328567,636.36,635.6,0.333]
[1739248981229,1.13764098,636.35,635.6,0.333]
[1739248981433,1.13764098,636.34,635.6,0.333]
[1739248981632,2.50052969,636.33,635.6,0.333]
[1739248981831,2.50052969,636.32,635.6,0.333]
[1739248982137,5.31353465,636.31,635.6,0.333]
[1739248982339,2.81452402,636.3,635.6,0.333]
[1739248982538,2.81452896,636.29,635.6,0.333]
[1739248982736,2.50020688,636.28,635.6,0.333]
[1739248983036,2.50020688,636.27,635.6,0.333]
[1739248983236,2.50020688,636.26,635.6,0.333]
[1739248983436,2.50020688,636.25,635.6,0.333]
[1739248983733,2.50020688,636.24,635.6,0.333]
[1739248983937,2.50020688,636.23,635.6,0.333]
[1739248984131,2.21120872,636.22,635.6,0.333]
[1739248984331,2.50020688,636.21,635.6,0.333]
[1739248984531,2.81457343,636.2,635.6,0.333]
[1739248984731,2.50020688,636.19,635.6,0.333]
[1739248984934,2.50020688,636.18,635.6,0.333]
[1739248985134,2.50020688,636.17,635.6,0.333]
[1739248985336,2.50020688,636.16,635.6,0.333]
[1739248985534,2.21120872,636.15,635.6,0.333]
[1739248985734,2.211909,636.14,635.6,0.333]
[1739248986440,2.81332777,636.13,635.6,0.333]
[1739248986638,2.211909,636.12,635.6,0.333]
[1739248987142,2.81332777,636.11,635.6,0.333]
[1739248987335,2.211909,636.1,635.6,0.333]
[1739248987535,0.85073423,636.09,635.6,0.333]
[1739248987736,1.93278337,636.08,635.6,0.333]
[1739248987937,1.08204914,636.08,635.6,0.333]
[1739248988136,0.85093511,636.07,635.6,0.333]
[1739248988740,1.08204914,636.06,635.6,0.333]
[1739248989337,2.21397789,636.05,635.6,0.333]
[1739248989942,3.10243982,636.04,635.6,0.333]
[1739248990143,2.50308994,636.03,635.6,0.333]
[1739248990346,2.81754546,636.02,635.6,0.333]
[1739248990543,2.50308994,636.01,635.6,0.333]
[1739248990743,2.50308994,636.0,635.6,0.333]
[1739248991043,2.50308994,635.99,635.6,0.333]
[1739248991244,2.50308994,635.98,635.6,0.333]
[1739248991443,2.50308994,635.97,635.6,0.333]
[1739248991643,2.81757512,635.96,635.6,0.333]
[1739248991843,5.63090784,635.95,635.6,0.333]
[1739248992039,2.50320929,635.94,635.6,0.333]
[1739248992244,2.50320929,635.93,635.6,0.333]
[1739248992440,2.50286821,635.92,635.6,0.333]
[1739248992642,2.21375616,635.91,635.6,0.333]
[1739248992843,2.21375616,635.9,635.6,0.333]
[1739248993037,2.21375616,635.89,635.6,0.333]
[1739248993241,0.85144468,635.88,635.6,0.333]
[1739248993645,2.81332777,635.89,635.6,0.333]
[1739248994144,0.31449013,635.95,635.6,0.333]
[1739248994348,0.85108884,635.94,635.6,0.333]
[1739248994739,1.08204914,635.93,635.6,0.333]
[1739248995844,0.31449013,635.95,635.6,0.333]
[1739248996041,0.8517043,635.94,635.6,0.333]
[1739248996442,1.08204914,635.93,635.6,0.333]
[1739248996642,0.8517043,635.92,635.6,0.333]
[1739248996839,1.08204914,635.91,635.6,0.333]
[1739248997045,0.8517043,635.9,635.6,0.333]
[1739248997739,1.08204914,635.89,635.6,0.333]
[1739248998642,0.31449013,635.95,635.6,0.333]
[1739248998840,0.85264869,635.94,635.6,0.333]
[1739248999041,1.08204914,635.93,635.6,0.333]
[1739248999241,2.21688659,635.92,635.6,0.333]
[1739248999646,1.08204914,635.91,635.6,0.333]
[1739248999842,0.85264869,635.9,635.6,0.333]
[1739249000043,2.81332777,635.91,635.6,0.333]
[1739249000442,0.85267047,635.9,635.6,0.333]
[1739249000644,0.85267047,635.89,635.6,0.333]
[1739249000847,0.85267047,635.88,635.6,0.333]
[1739249001040,0.85267047,635.87,635.6,0.333]
[1739249001242,0.85267047,635.86,635.6,0.333]
[1739249001550,1.08204914,635.85,635.6,0.333]
[1739249002040,0.85267817,635.84,635.6,0.333]
[1739249002443,0.85267817,635.83,635.6,0.333]
[1739249002645,0.85267817,635.82,635.6,0.333]
[1739249002843,1.08204914,635.92,635.6,0.333]
[1739249003041,2.21685361,635.91,635.6,0.333]
[1739249003243,1.08204914,635.81,635.6,0.333]
[1739249003451,0.852636,635.8,635.6,0.333]
[1739249003949,2.81332777,635.9,635.6,0.333]
[1739249004143,0.85250325,635.89,635.6,0.333]
[1739249004344,0.31452475,635.88,635.6,0.333]
[1739249004548,2.24907714,635.88,635.6,0.333]
[1739249004748,2.21647815,635.87,635.6,0.333]
[1739249004949,0.85250325,635.86,635.6,0.333]
[1739249005148,0.85250325,635.85,635.6,0.333]
[1739249005350,1.36406041,635.87,635.6,0.333]
[1739249005351,0.85250325,635.84,635.6,0.333]
[1739249005550,0.85250325,635.83,635.6,0.333]
[1739249005749,1.16705768,635.82,635.6,0.333]
[1739249005946,1.45631793,635.81,635.6,0.333]
[1739249006147,2.82038328,635.8,635.6,0.333]
[1739249006345,2.82038328,635.8,634.02,1.02784969]
[1739249006346,2.82038823,635.79,634.02,1.02784969]
[1739249006546,2.82039318,635.78,634.04,0.31543751]
[1739249006847,2.82039813,635.77,634.04,0.31543751]
[1739249007046,2.82040307,635.76,634.04,0.31543751]
[1739249007248,2.53115272,635.75,634.04,0.31543751]
[1739249007453,2.82045047,635.74,634.04,0.31543751]
[1739249007649,2.82045542,635.73,634.04,0.31543751]
[1739249007845,2.82046037,635.72,634.05,1.64445705]
[1739249008052,2.82046532,635.71,634.07,0.31542258]
[1739249008253,2.82047027,635.7,634.07,0.31542258]
[1739249008553,0.93323744,635.62,634.07,0.31542258]
[1739249008753,2.82051481,635.61,634.07,0.31542258]
[1739249008948,2.50585646,635.6,634.07,0.31542258]
[1739249009148,2.50585646,635.59,634.07,0.31542258]
[1739249009351,2.82052967,635.58,634.07,0.31542258]
[1739249009549,0.93323744,635.39,634.07,0.31542258]
[1739249009750,0.93323744,635.34,634.07,0.31542258]
[1739249009953,0.93323744,635.29,634.07,0.31542258]
[1739249010153,3.75391571,635.28,634.07,0.31542258]
[1739249010357,0.93323744,635.26,634.07,0.31542258]
[1739249010558,1.53736691,635.25,634.07,0.31542258]
[1739249010758,0.93065556,635.23,634.07,0.31542258]
[1739249010958,1.53504414,635.22,634.07,0.31542258]
[1739249011160,2.81457645,635.21,634.07,0.31542258]
[1739249011359,2.81458141,635.2,634.07,0.31542258]
[1739249011559,2.81458636,635.19,634.07,0.31542258]
[1739249011761,2.81464927,635.18,633.55,1.02784969]
[1739249012062,2.81465423,635.17,633.56,0.31567649]
[1739249012256,2.81465918,635.16,633.56,0.31567649]
[1739249012460,2.81466414,635.15,633.56,0.31567649]
[1739249012660,2.8146691,635.14,633.56,0.31567649]
[1739249012861,0.92863913,634.9,633.56,0.31567649]
[1739249013061,0.92863913,634.67,633.56,0.31567649]
[1739249013253,2.49012553,634.66,633.56,0.31567649]
[1739249013458,0.92672853,634.55,632.89,1.02784969]
[1739249013761,0.92672853,634.44,632.91,0.31600069]
[1739249013956,2.49012553,634.43,632.91,0.31600069]
[1739249014158,2.8053741,634.42,632.91,0.31600069]
[1739249014457,2.80537907,634.41,632.91,0.31600069]
[1739249014656,2.49012553,634.4,632.92,1.64760375]
[1739249014956,2.81332777,634.41,632.92,1.64760375]
[1739249015155,2.81332777,634.41,632.94,0.31598571]
[1739249015357,1.64692798,634.85,632.94,0.31598571]
[1739249015553,2.7962358,634.84,632.94,0.31598571]
[1739249015758,2.79624076,634.83,632.94,0.31598571]
[1739249015955,2.79624572,634.82,632.94,0.31598571]
[1739249016157,0.92672853,634.77,632.94,0.31598571]
[1739249016359,0.60477391,634.76,632.94,0.31598571]
[1739249016558,2.52971324,634.75,632.94,0.31598571]
[1739249016760,2.79628543,634.74,632.94,0.31598571]
[1739249016958,1.08204914,634.75,632.94,0.31598571]
[1739249016959,2.7936514,634.73,632.94,0.31598571]
[1739249017162,2.79365637,634.72,632.94,0.31598571]
[1739249017358,0.3151095,634.7,632.94,0.31598571]
[1739249017563,0.2896942,634.69,632.94,0.31598571]
[1739249017763,0.31512439,634.67,632.94,0.31598571]
[1739249018066,2.21361357,634.66,632.94,0.31598571]
[1739249018267,0.31513929,634.64,632.94,0.31598571]
[1739249018469,0.2896942,634.63,632.94,0.31598571]
[1739249018766,0.60484342,634.62,632.94,0.31598571]
[1739249019069,0.31515915,634.6,632.94,0.31598571]
[1739249019268,1.13156443,634.59,632.94,0.31598571]
[1739249019469,0.31517405,634.57,632.94,0.31598571]
[1739249019664,0.2896942,634.56,632.94,0.31598571]
[1739249019863,0.31518895,634.54,632.94,0.31598571]
[1739249020070,0.84187023,634.53,632.94,0.31598571]
[1739249020366,0.2896942,634.52,632.94,0.31598571]
[1739249020665,0.2896942,634.51,632.94,0.31598571]
[1739249020972,0.2896942,634.5,632.94,0.31598571]
[1739249021169,1.12619585,634.49,632.94,0.31598571]
[1739249021371,0.83650165,634.48,632.94,0.31598571]
[1739249021569,0.2896942,634.47,632.94,0.31598571]
[1739249021769,1.15173034,634.46,632.94,0.31598571]
[1739249021970,0.2896942,634.45,632.94,0.31598571]
[1739249022169,3.10302197,634.45,632.94,0.31598571]
[1739249022367,0.2896942,634.44,632.94,0.31598571]
[1739249022563,0.83427528,634.43,632.94,0.31598571]
[1739249022763,0.2896942,634.42,632.94,0.31598571]
[1739249023169,0.2896942,634.44,632.94,0.31598571]
[1739249023472,0.31524857,634.42,632.94,0.31598571]
[1739249023771,0.2896942,634.41,631.25,1.02784969]
[1739249023970,0.31526348,634.39,631.4,0.31675641]
[1739249024169,1.12296105,634.38,631.4,0.31675641]
[1739249024366,1.12296105,634.37,631.4,0.31675641]
[1739249024568,1.12296105,634.36,631.4,0.31675641]
[1739249024769,0.31528833,634.34,631.4,0.31675641]
[1739249024976,1.12296105,634.33,631.4,0.31675641]
[1739249025269,0.31530324,634.31,631.4,0.31675641]
[1739249025469,0.2896942,634.3,631.4,0.31675641]
[1739249025676,0.31531815,634.28,631.4,0.31675641]
[1739249025872,0.2896942,634.27,631.4,0.31675641]
[1739249026173,0.31533307,634.25,631.4,0.31675641]
[1739249026375,1.12059329,634.24,631.4,0.31675641]
[1739249026576,0.31534798,634.22,631.4,0.31675641]
[1739249026769,0.2896942,634.21,631.4,0.31675641]
[1739249026969,0.3153629,634.19,631.4,0.31675641]
[1739249027170,0.2896942,634.18,631.4,0.31675641]
[1739249027773,0.2896942,634.17,631.4,0.31675641]
[1739249027974,0.31538279,634.15,631.4,0.31675641]
[1739249028271,0.2896942,634.14,631.4,0.31675641]
[1739249028472,0.31539771,634.12,631.4,0.31675641]
[1739249028674,0.2896942,634.11,631.4,0.31675641]
[1739249028875,0.60510186,634.1,631.4,0.31675641]
[1739249029073,0.60510683,634.09,631.4,0.31675641]
[1739249029274,0.60553922,634.08,631.4,0.31675641]
[1739249029470,0.60554419,634.07,631.4,0.31675641]
[1739249029678,0.60554917,634.06,631.4,0.31675641]
[1739249029875,0.60555414,634.05,631.4,0.31675641]
[1739249030074,0.29012161,634.04,631.4,0.31675641]
[1739249030275,0.29012161,634.03,631.4,0.31675641]
[1739249030573,0.60556907,634.02,631.4,0.31675641]
[1739249030769,0.60557404,634.01,631.4,0.31675641]
[1739249030974,0.60557902,634.0,631.4,0.31675641]
[1739249031174,0.60558399,633.99,631.4,0.31675641]
[1739249031377,0.60558897,633.98,631.4,0.31675641]
[1739249031578,0.60559395,633.97,631.41,1.650032]
[1739249031773,0.60559892,633.96,631.53,0.31669121]
[1739249031978,0.6056039,633.95,631.53,0.31669121]
[1739249032172,0.60560888,633.94,631.53,0.31669121]
[1739249032372,0.60561385,633.93,631.53,0.31669121]
[1739249032572,0.60561883,633.92,631.53,0.31669121]
[1739249032775,0.3155022,633.91,631.53,0.31669121]
[1739249032978,0.29014391,633.9,631.53,0.31669121]
[1739249033371,0.60565108,633.9,631.53,0.31669121]
[1739249033573,0.60565606,633.89,631.53,0.31669121]
[1739249033873,5.79827639,642.33,631.53,0.31669121]
[1739249033874,0.60566104,633.88,631.53,0.31669121]
[1739249034076,0.31552708,633.86,631.53,0.31669121]
[1739249034272,0.29014391,633.85,631.53,0.31669121]
[1739249034473,0.31554202,633.83,631.53,0.31669121]
[1739249034677,0.29030983,633.82,631.53,0.31669121]
[1739249034874,0.31555695,633.8,631.53,0.31669121]
[1739249035093,0.29030983,633.79,631.53,0.31669121]
[1739249035379,0.31557189,633.77,631.53,0.31669121]
[1739249035578,0.29030983,633.76,631.53,0.31669121]
[1739249035881,0.31558683,633.74,631.53,0.31669121]
[1739249036077,0.29030983,633.73,631.53,0.31669121]
[1739249036275,0.31560177,633.71,631.53,0.31669121]
[1739249036474,0.29030983,633.7,631.53,0.31669121]
[1739249036677,0.60591099,633.69,631.53,0.31669121]
[1739249036874,0.60591597,633.68,631.53,0.31669121]
[1739249037073,0.60592095,633.67,631.53,0.31669121]
[1739249037278,0.60592593,633.66,631.53,0.31669121]